[Event "*** Titled Tuesday Blitz"]
[Site "Chess.com"]
[Date "2020.05.12"]
[Round "1"]
[White "silverback96"]
[Black "Koksik_13"]
[Result "0-1"]
[WhiteElo "2217"]
[BlackElo "2553"]
[TimeControl "180+1"]
[EndTime "10:07:43 PDT"]
[Termination "Koksik_13 won by checkmate"]

1. Nf3 {[%clk 0:03:00.9]} 1... e6 {[%clk 0:02:46.3]} 2. g3 {[%clk 0:03:00.8]}
2... Nf6 {[%clk 0:02:45.9]} 3. Bg2 {[%clk 0:03:01.3]} 3... Be7 {[%clk
0:02:44.8]} 4. O-O {[%clk 0:03:01.7]} 4... O-O {[%clk 0:02:45.2]} 5. d4 {[%clk
0:03:02]} 5... d5 {[%clk 0:02:44.6]} 6. c4 {[%clk 0:03:02.3]} 6... dxc4 {[%clk
0:02:39.5]} 7. Qc2 {[%clk 0:03:02.6]} 7... a6 {[%clk 0:02:38.8]} 8. a4 {[%clk
0:03:01.7]} 8... Bd7 {[%clk 0:02:38]} 9. Bg5 {[%clk 0:03:02.3]} 9... Bc6 {[%clk
0:02:37.4]} 10. Qxc4 {[%clk 0:03:03]} 10... Bd5 {[%clk 0:02:37.2]} 11. Qc2
{[%clk 0:03:03.1]} 11... Nc6 {[%clk 0:02:37.3]} 12. Nc3 {[%clk 0:02:52.1]} 12...
Nb4 {[%clk 0:02:35]} 13. Qd1 {[%clk 0:02:48]} 13... Ne4 {[%clk 0:02:33.3]} 14.
Bxe7 {[%clk 0:02:35.1]} 14... Qxe7 {[%clk 0:02:34.2]} 15. Nxd5 {[%clk
0:02:29.2]} 15... exd5 {[%clk 0:02:33]} 16. Nd2 {[%clk 0:02:29.8]} 16... Nxd2
{[%clk 0:02:27.1]} 17. Qxd2 {[%clk 0:02:29.9]} 17... c6 {[%clk 0:02:25.5]} 18.
a5 {[%clk 0:02:29.5]} 18... c5 {[%clk 0:02:20.3]} 19. Ra4 {[%clk 0:01:57.6]}
19... Nc6 {[%clk 0:02:14.4]} 20. dxc5 {[%clk 0:01:57.4]} 20... Qxc5 {[%clk
0:02:15.3]} 21. Qxd5 {[%clk 0:01:53.2]} 21... Qc2 {[%clk 0:02:15.1]} 22. Qe4
{[%clk 0:01:42.6]} 22... Qxb2 {[%clk 0:02:12.3]} 23. Rb1 {[%clk 0:01:42.6]}
23... Qf6 {[%clk 0:01:49.6]} 24. Rxb7 {[%clk 0:01:40.9]} 24... Rad8 {[%clk
0:01:49.6]} 25. Rb6 {[%clk 0:01:24.1]} 25... Rd1+ {[%clk 0:01:18.9]} 26. Bf1
{[%clk 0:01:24.2]} 26... Rd6 {[%clk 0:01:18.4]} 27. Rxa6 {[%clk 0:01:20.9]}
27... Rfd8 {[%clk 0:01:03.2]} 28. e3 {[%clk 0:01:09.2]} 28... g6 {[%clk
0:00:57]} 29. Rc4 {[%clk 0:01:09]} 29... Ne5 {[%clk 0:00:55.8]} 30. Rxd6 {[%clk
0:01:08.7]} 30... Rxd6 {[%clk 0:00:55.2]} 31. Rc8+ {[%clk 0:01:06.6]} 31... Kg7
{[%clk 0:00:54.7]} 32. a6 {[%clk 0:01:05.6]} 32... Nf3+ {[%clk 0:00:26.8]} 33.
Kg2 {[%clk 0:01:05.1]} 33... Ne1+ {[%clk 0:00:26.8]} 34. Kg1 {[%clk 0:01:03.1]}
34... Nf3+ {[%clk 0:00:26.7]} 35. Kg2 {[%clk 0:00:44.3]} 35... Nd2 {[%clk
0:00:26]} 36. Qa4 {[%clk 0:00:19.8]} 36... Qf3+ {[%clk 0:00:18.3]} 37. Kg1
{[%clk 0:00:18.9]} 37... Nxf1 {[%clk 0:00:17.2]} 38. Rc1 {[%clk 0:00:08.5]}
38... Nxe3 {[%clk 0:00:15.4]} 39. fxe3 {[%clk 0:00:07]} 39... Qxe3+ {[%clk
0:00:15.5]} 40. Kg2 {[%clk 0:00:07.2]} 40... Rd2+ {[%clk 0:00:12.6]} 41. Kh3
{[%clk 0:00:07.2]} 41... Qe6+ {[%clk 0:00:12.5]} 42. Kh4 {[%clk 0:00:03.6]}
42... Rxh2+ {[%clk 0:00:11.7]} 43. Kg5 {[%clk 0:00:03.6]} 43... Qf5# {[%clk
0:00:12.6]} 0-1

[Event "*** Titled Tuesday Blitz"]
[Site "Chess.com"]
[Date "2020.05.12"]
[Round "1"]
[White "ehrenfeld"]
[Black "robertofabregas"]
[Result "1-0"]
[WhiteElo "2503"]
[BlackElo "2101"]
[TimeControl "180+1"]
[EndTime "10:07:44 PDT"]
[Termination "ehrenfeld won by checkmate"]

1. e4 {[%clk 0:03:00.9]} 1... c5 {[%clk 0:02:59.2]} 2. d3 {[%clk 0:03:00.6]}
2... Nc6 {[%clk 0:02:58.3]} 3. f4 {[%clk 0:03:00.6]} 3... d6 {[%clk 0:02:58.4]}
4. Nf3 {[%clk 0:03:00.7]} 4... g6 {[%clk 0:02:57.7]} 5. Be2 {[%clk 0:03:01.2]}
5... Bg7 {[%clk 0:02:58.3]} 6. O-O {[%clk 0:03:01.7]} 6... Qc7 {[%clk
0:02:58.8]} 7. c3 {[%clk 0:03:00.9]} 7... e6 {[%clk 0:02:56.6]} 8. Be3 {[%clk
0:03:00.2]} 8... Nge7 {[%clk 0:02:57.2]} 9. d4 {[%clk 0:02:59.1]} 9... b6 {[%clk
0:02:54.9]} 10. Na3 {[%clk 0:02:55.7]} 10... a6 {[%clk 0:02:53.1]} 11. Qd2
{[%clk 0:02:40.9]} 11... O-O {[%clk 0:02:50.4]} 12. Nc2 {[%clk 0:02:39.8]} 12...
Rd8 {[%clk 0:02:45.3]} 13. Rad1 {[%clk 0:02:38.1]} 13... Bb7 {[%clk 0:02:33.4]}
14. Bd3 {[%clk 0:02:34.9]} 14... c4 {[%clk 0:02:27.7]} 15. Be2 {[%clk
0:02:12.6]} 15... d5 {[%clk 0:02:21.7]} 16. e5 {[%clk 0:02:12]} 16... Nf5 {[%clk
0:02:19.2]} 17. Bf2 {[%clk 0:02:12.1]} 17... b5 {[%clk 0:01:54.2]} 18. g4 {[%clk
0:02:11]} 18... Nfe7 {[%clk 0:01:52.9]} 19. Ne3 {[%clk 0:02:10.5]} 19... a5
{[%clk 0:01:44.8]} 20. Bh4 {[%clk 0:02:10.1]} 20... Bh6 {[%clk 0:01:23.3]} 21.
Bg5 {[%clk 0:02:03.8]} 21... Bxg5 {[%clk 0:01:13.1]} 22. Nxg5 {[%clk 0:02:02.8]}
22... h6 {[%clk 0:00:59.7]} 23. Nf3 {[%clk 0:01:59.5]} 23... Bc8 {[%clk
0:00:59.4]} 24. Kh1 {[%clk 0:01:57.6]} 24... Kg7 {[%clk 0:00:59.2]} 25. Rg1
{[%clk 0:01:57.7]} 25... Rh8 {[%clk 0:00:54.9]} 26. Nh4 {[%clk 0:01:54]} 26...
Bd7 {[%clk 0:00:54.3]} 27. f5 {[%clk 0:01:48.7]} 27... g5 {[%clk 0:00:47.2]} 28.
f6+ {[%clk 0:01:48.6]} 28... Kg8 {[%clk 0:00:47.4]} 29. Nf3 {[%clk 0:01:43.2]}
29... Ng6 {[%clk 0:00:44.5]} 30. Ng2 {[%clk 0:01:42.6]} 30... b4 {[%clk
0:00:41.4]} 31. h4 {[%clk 0:01:38.7]} 31... bxc3 {[%clk 0:00:37.1]} 32. bxc3
{[%clk 0:01:37.8]} 32... gxh4 {[%clk 0:00:35.1]} 33. Nfxh4 {[%clk 0:01:33.3]}
33... Nxh4 {[%clk 0:00:35.6]} 34. Nxh4 {[%clk 0:01:32.5]} 34... Nxe5 {[%clk
0:00:34.8]} 35. Qf4 {[%clk 0:01:26.9]} 35... Rc8 {[%clk 0:00:16.4]} 36. dxe5
{[%clk 0:01:25.7]} 36... Kf8 {[%clk 0:00:12.5]} 37. Nf3 {[%clk 0:01:24.1]} 37...
Ke8 {[%clk 0:00:12.4]} 38. Nd4 {[%clk 0:01:23.9]} 38... Ba4 {[%clk 0:00:12.6]}
39. Rb1 {[%clk 0:01:23.4]} 39... Kd7 {[%clk 0:00:12.3]} 40. Kg2 {[%clk
0:01:19.6]} 40... Rb8 {[%clk 0:00:12.4]} 41. Kf2 {[%clk 0:01:18.7]} 41... Rxb1
{[%clk 0:00:11.8]} 42. Rxb1 {[%clk 0:01:17.6]} 42... Rb8 {[%clk 0:00:12.7]} 43.
Rxb8 {[%clk 0:01:13.8]} 43... Qxb8 {[%clk 0:00:13.6]} 44. Nf3 {[%clk 0:01:09.2]}
44... Qb2 {[%clk 0:00:13.8]} 45. Qd4 {[%clk 0:01:08.7]} 45... Qxa2 {[%clk
0:00:13.6]} 46. g5 {[%clk 0:01:04.3]} 46... hxg5 {[%clk 0:00:13.3]} 47. Nxg5
{[%clk 0:01:03.8]} 47... Bc2 {[%clk 0:00:11.8]} 48. Qa7+ {[%clk 0:01:01.8]}
48... Kc6 {[%clk 0:00:11.9]} 49. Qa6+ {[%clk 0:00:51.2]} 49... Kc7 {[%clk
0:00:12]} 50. Qd6+ {[%clk 0:00:48.9]} 50... Kb7 {[%clk 0:00:12.2]} 51. Qd7+
{[%clk 0:00:43.6]} 51... Kb6 {[%clk 0:00:12.4]} 52. Nf3 {[%clk 0:00:40.2]} 52...
Bd3 {[%clk 0:00:11.3]} 53. Nd4 {[%clk 0:00:40.1]} 53... Qd2 {[%clk 0:00:10.2]}
54. Qc6+ {[%clk 0:00:37.1]} 54... Ka7 {[%clk 0:00:10.7]} 55. Nb5+ {[%clk
0:00:37.1]} 55... Kb8 {[%clk 0:00:09.2]} 56. Qc7+ {[%clk 0:00:37.2]} 56... Ka8
{[%clk 0:00:09.3]} 57. Qc8# {[%clk 0:00:37.3]} 1-0

[Event "*** Titled Tuesday Blitz"]
[Site "Chess.com"]
[Date "2020.05.12"]
[Round "1"]
[White "sergeikim"]
[Black "Twitch_ElhamBlitz05"]
[Result "0-1"]
[WhiteElo "2419"]
[BlackElo "2803"]
[TimeControl "180+1"]
[EndTime "10:07:45 PDT"]
[Termination "Twitch_ElhamBlitz05 won by resignation"]

1. d4 {[%clk 0:03:00.9]} 1... Nf6 {[%clk 0:02:59.7]} 2. c4 {[%clk 0:03:00.4]}
2... e6 {[%clk 0:02:59.9]} 3. Nc3 {[%clk 0:03:00]} 3... d5 {[%clk 0:03:00]} 4.
Nf3 {[%clk 0:02:58.9]} 4... Bb4 {[%clk 0:02:59.4]} 5. e3 {[%clk 0:02:56.3]} 5...
O-O {[%clk 0:02:58.8]} 6. Bd3 {[%clk 0:02:55.4]} 6... dxc4 {[%clk 0:02:48.3]} 7.
Bxc4 {[%clk 0:02:54]} 7... a6 {[%clk 0:02:48.5]} 8. O-O {[%clk 0:02:51.5]} 8...
b5 {[%clk 0:02:48.5]} 9. Bb3 {[%clk 0:02:51.1]} 9... Bb7 {[%clk 0:02:48.5]} 10.
Qe2 {[%clk 0:02:41.7]} 10... Nbd7 {[%clk 0:02:48.5]} 11. Rd1 {[%clk 0:02:41]}
11... Qe7 {[%clk 0:02:48.3]} 12. Bc2 {[%clk 0:02:37.6]} 12... Rad8 {[%clk
0:02:34]} 13. e4 {[%clk 0:02:36.1]} 13... e5 {[%clk 0:02:28.7]} 14. d5 {[%clk
0:02:24.1]} 14... Bc5 {[%clk 0:02:22.4]} 15. Nh4 {[%clk 0:02:19.6]} 15... g6
{[%clk 0:02:08.9]} 16. Bg5 {[%clk 0:02:17.6]} 16... Rfe8 {[%clk 0:01:23.3]} 17.
Rd3 {[%clk 0:02:11.4]} 17... h6 {[%clk 0:01:05.8]} 18. Bxh6 {[%clk 0:02:04.2]}
18... Nh5 {[%clk 0:01:00.2]} 19. Nf5 {[%clk 0:01:59.1]} 19... Qf6 {[%clk
0:00:55.9]} 20. Rh3 {[%clk 0:01:17.4]} 20... Nf4 {[%clk 0:00:51.1]} 21. Bxf4
{[%clk 0:01:16.1]} 21... exf4 {[%clk 0:00:52]} 22. Qg4 {[%clk 0:01:12.4]} 22...
Ne5 {[%clk 0:00:44.4]} 23. Qxf4 {[%clk 0:00:47.9]} 23... gxf5 {[%clk 0:00:44.4]}
24. exf5 {[%clk 0:00:47.5]} 24... Bxd5 {[%clk 0:00:37.3]} 25. Nxd5 {[%clk
0:00:28.6]} 25... Rxd5 {[%clk 0:00:38.2]} 26. Bb3 {[%clk 0:00:26.5]} 26... Rd4
{[%clk 0:00:35.4]} 27. Rg3+ {[%clk 0:00:22.4]} 27... Kf8 {[%clk 0:00:34.7]} 28.
Qc1 {[%clk 0:00:17.2]} 28... Red8 {[%clk 0:00:33.1]} 29. Qxc5+ {[%clk
0:00:14.2]} 29... Qd6 {[%clk 0:00:33.3]} 30. Qc1 {[%clk 0:00:12.5]} 30... Nd3
{[%clk 0:00:30.7]} 31. Qe3 {[%clk 0:00:10.9]} 31... Nf4 {[%clk 0:00:25.5]} 32.
h3 {[%clk 0:00:10.2]} 32... Re8 {[%clk 0:00:25.2]} 33. Qf3 {[%clk 0:00:09.2]}
33... Ne2+ {[%clk 0:00:26]} 34. Kh2 {[%clk 0:00:10.1]} 34... Nxg3 {[%clk
0:00:26.5]} 35. fxg3 {[%clk 0:00:11]} 35... Rd3 {[%clk 0:00:23.4]} 36. Qh5
{[%clk 0:00:10.8]} 36... Qxg3+ {[%clk 0:00:23]} 37. Kh1 {[%clk 0:00:11.7]} 37...
Re1+ {[%clk 0:00:23.2]} 38. Rxe1 {[%clk 0:00:10.2]} 38... Qxe1+ {[%clk
0:00:24.1]} 39. Kh2 {[%clk 0:00:10.7]} 39... Qe5+ {[%clk 0:00:24.4]} 40. Kh1
{[%clk 0:00:10.3]} 40... Qf6 {[%clk 0:00:24.7]} 41. Kh2 {[%clk 0:00:07.7]} 41...
Re3 {[%clk 0:00:24.4]} 42. Qd1 {[%clk 0:00:03.2]} 42... Qe5+ {[%clk 0:00:24.4]}
0-1

[Event "*** Titled Tuesday Blitz"]
[Site "Chess.com"]
[Date "2020.05.12"]
[Round "1"]
[White "jaskol95"]
[Black "Shubinkirill2003"]
[Result "0-1"]
[WhiteElo "2259"]
[BlackElo "2582"]
[TimeControl "180+1"]
[EndTime "10:07:46 PDT"]
[Termination "Shubinkirill2003 won by resignation"]

1. d4 {[%clk 0:03:00.9]} 1... e6 {[%clk 0:02:57.6]} 2. Bf4 {[%clk 0:02:57.2]}
2... Nf6 {[%clk 0:02:56.4]} 3. e3 {[%clk 0:02:55.7]} 3... b6 {[%clk 0:02:54.2]}
4. Nf3 {[%clk 0:02:51.6]} 4... Bb7 {[%clk 0:02:54.2]} 5. Nbd2 {[%clk 0:02:52]}
5... d6 {[%clk 0:02:54.2]} 6. c3 {[%clk 0:02:49.8]} 6... Nbd7 {[%clk 0:02:54.1]}
7. Bd3 {[%clk 0:02:44.4]} 7... h6 {[%clk 0:02:54]} 8. Qe2 {[%clk 0:02:38.1]}
8... g5 {[%clk 0:02:51.3]} 9. Bg3 {[%clk 0:02:38.5]} 9... Rg8 {[%clk 0:02:51]}
10. O-O-O {[%clk 0:02:36.2]} 10... h5 {[%clk 0:02:49.3]} 11. h3 {[%clk
0:02:16.6]} 11... g4 {[%clk 0:02:46.5]} 12. hxg4 {[%clk 0:02:14.1]} 12... hxg4
{[%clk 0:02:47.4]} 13. Nh4 {[%clk 0:02:14.5]} 13... Be7 {[%clk 0:02:47.1]} 14.
e4 {[%clk 0:02:10.3]} 14... Nh5 {[%clk 0:02:45.4]} 15. Kb1 {[%clk 0:02:02.6]}
15... Nxg3 {[%clk 0:02:22.3]} 16. fxg3 {[%clk 0:02:03.5]} 16... Bf6 {[%clk
0:02:15.4]} 17. Rdf1 {[%clk 0:02:00.7]} 17... Qe7 {[%clk 0:02:15.2]} 18. Ba6
{[%clk 0:01:58.2]} 18... O-O-O {[%clk 0:02:13.1]} 19. Bxb7+ {[%clk 0:01:58.2]}
19... Kxb7 {[%clk 0:02:14]} 20. Qf2 {[%clk 0:01:39.7]} 20... Rh8 {[%clk
0:02:05.2]} 21. Nc4 {[%clk 0:01:34.8]} 21... Rdf8 {[%clk 0:01:50]} 22. Ne3
{[%clk 0:01:33.6]} 22... Rhg8 {[%clk 0:01:46.6]} 23. Re1 {[%clk 0:01:02.6]}
23... Rg7 {[%clk 0:01:29.3]} 24. Rhf1 {[%clk 0:00:58.9]} 24... Rh8 {[%clk
0:01:14.5]} 25. Nhf5 {[%clk 0:00:47.1]} 25... exf5 {[%clk 0:01:14.3]} 26. Nxf5
{[%clk 0:00:48]} 26... Qf8 {[%clk 0:01:07.2]} 27. Nxg7 {[%clk 0:00:46]} 27...
Qxg7 {[%clk 0:01:08.1]} 28. Qf5 {[%clk 0:00:43.7]} 28... Rd8 {[%clk 0:00:51.2]}
29. Rf4 {[%clk 0:00:42.6]} 29... Qg6 {[%clk 0:00:48.6]} 30. Qxg6 {[%clk
0:00:38.4]} 30... fxg6 {[%clk 0:00:49.5]} 31. Ref1 {[%clk 0:00:38]} 31... Be7
{[%clk 0:00:36.9]} 32. Rxg4 {[%clk 0:00:36]} 32... g5 {[%clk 0:00:36.3]} 33. Rf7
{[%clk 0:00:29.7]} 33... Re8 {[%clk 0:00:36.3]} 34. e5 {[%clk 0:00:20.5]} 34...
dxe5 {[%clk 0:00:35.7]} 35. Re4 {[%clk 0:00:20.4]} 35... Kc6 {[%clk 0:00:29]}
36. dxe5 {[%clk 0:00:17.1]} 36... Kd5 {[%clk 0:00:29.1]} 37. Rd4+ {[%clk
0:00:15.9]} 37... Ke6 {[%clk 0:00:29.1]} 38. Rf1 {[%clk 0:00:15.7]} 38... Nxe5
{[%clk 0:00:29.1]} 39. Re1 {[%clk 0:00:16.1]} 39... Bd6 {[%clk 0:00:29.1]} 40.
Kc2 {[%clk 0:00:15.5]} 40... Rf8 {[%clk 0:00:29.2]} 41. Rd2 {[%clk 0:00:15.5]}
41... g4 {[%clk 0:00:23]} 42. b3 {[%clk 0:00:15.6]} 42... Rf5 {[%clk 0:00:20.7]}
43. c4 {[%clk 0:00:16]} 43... Kd7 {[%clk 0:00:20.5]} 44. Re4 {[%clk 0:00:14.5]}
44... Ke6 {[%clk 0:00:20.3]} 45. Rd5 {[%clk 0:00:14.5]} 45... Rf2+ {[%clk
0:00:19.4]} 46. Kc3 {[%clk 0:00:14.2]} 46... Rxg2 {[%clk 0:00:19.1]} 47. Rd3
{[%clk 0:00:12.5]} 47... Kf5 {[%clk 0:00:18.4]} 48. Rde3 {[%clk 0:00:12.2]}
48... Rxg3 {[%clk 0:00:16.3]} 49. Rxg3 {[%clk 0:00:10.3]} 49... Kxe4 {[%clk
0:00:17.2]} 50. Kb2 {[%clk 0:00:09.9]} 50... Kf4 {[%clk 0:00:16.8]} 51. Rg1
{[%clk 0:00:10]} 51... g3 {[%clk 0:00:17.1]} 52. Kc3 {[%clk 0:00:10.1]} 52...
Kf3 {[%clk 0:00:17]} 0-1

[Event "*** Titled Tuesday Blitz"]
[Site "Chess.com"]
[Date "2020.05.12"]
[Round "1"]
[White "SergeiAza"]
[Black "TrenerChos"]
[Result "1-0"]
[WhiteElo "2764"]
[BlackElo "2402"]
[TimeControl "180+1"]
[EndTime "10:07:49 PDT"]
[Termination "SergeiAza won on time"]

1. e4 {[%clk 0:03:00.9]} 1... d5 {[%clk 0:02:56.9]} 2. exd5 {[%clk 0:03:00.2]}
2... Nf6 {[%clk 0:02:56.3]} 3. d4 {[%clk 0:02:59.5]} 3... Qxd5 {[%clk
0:02:55.6]} 4. Nc3 {[%clk 0:02:57.2]} 4... Qa5 {[%clk 0:02:55.2]} 5. Nf3 {[%clk
0:02:56.5]} 5... c6 {[%clk 0:02:54.1]} 6. Bc4 {[%clk 0:02:56.1]} 6... Bf5 {[%clk
0:02:51]} 7. Bd2 {[%clk 0:02:55.3]} 7... Qc7 {[%clk 0:02:49.2]} 8. Nh4 {[%clk
0:02:38.1]} 8... Bg4 {[%clk 0:02:46.2]} 9. f3 {[%clk 0:02:36.5]} 9... Bc8 {[%clk
0:02:45.6]} 10. Qe2 {[%clk 0:02:30.7]} 10... e6 {[%clk 0:02:45]} 11. O-O-O
{[%clk 0:02:28.7]} 11... Be7 {[%clk 0:02:38.4]} 12. Rhe1 {[%clk 0:02:21.8]}
12... O-O {[%clk 0:02:30.1]} 13. Nf5 {[%clk 0:02:21.2]} 13... Bb4 {[%clk
0:02:14.9]} 14. Ng3 {[%clk 0:02:18.8]} 14... Nd5 {[%clk 0:02:04.7]} 15. Nce4
{[%clk 0:01:53.5]} 15... Bxd2+ {[%clk 0:02:03.2]} 16. Rxd2 {[%clk 0:01:52.6]}
16... b5 {[%clk 0:01:56.2]} 17. Bd3 {[%clk 0:01:50.2]} 17... Nb4 {[%clk
0:01:52]} 18. Kb1 {[%clk 0:01:41.9]} 18... Qa5 {[%clk 0:01:44.7]} 19. a3 {[%clk
0:01:29.9]} 19... Nxd3 {[%clk 0:01:44.4]} 20. Rxd3 {[%clk 0:01:30.4]} 20... Nd7
{[%clk 0:01:39.4]} 21. c3 {[%clk 0:01:20.4]} 21... Nb6 {[%clk 0:01:25.5]} 22. f4
{[%clk 0:01:17.2]} 22... Nd5 {[%clk 0:01:19.2]} 23. Nh5 {[%clk 0:01:15.5]} 23...
Qc7 {[%clk 0:01:03.5]} 24. Rg3 {[%clk 0:01:05.1]} 24... g6 {[%clk 0:01:00.7]}
25. Nhf6+ {[%clk 0:00:53.4]} 25... Kg7 {[%clk 0:00:53.7]} 26. Nxd5 {[%clk
0:00:34.7]} 26... exd5 {[%clk 0:00:49.1]} 27. Nc5 {[%clk 0:00:32.6]} 27... Bf5+
{[%clk 0:00:43.4]} 28. Ka2 {[%clk 0:00:31.9]} 28... Rae8 {[%clk 0:00:41.4]} 29.
Re3 {[%clk 0:00:32]} 29... Rxe3 {[%clk 0:00:36.7]} 30. Qxe3 {[%clk 0:00:32.9]}
30... a5 {[%clk 0:00:26.2]} 31. g3 {[%clk 0:00:29]} 31... b4 {[%clk 0:00:21.7]}
32. cxb4 {[%clk 0:00:27.1]} 32... axb4 {[%clk 0:00:21.3]} 33. a4 {[%clk
0:00:27.7]} 33... Qa5 {[%clk 0:00:11.3]} 34. b3 {[%clk 0:00:25.7]} 34... f6
{[%clk 0:00:10.2]} 35. Kb2 {[%clk 0:00:24.8]} 35... Rf7 {[%clk 0:00:10]} 36. Qe8
{[%clk 0:00:22.8]} 36... Qa7 {[%clk 0:00:09.1]} 37. Qd8 {[%clk 0:00:19]} 37...
Be4 {[%clk 0:00:08.3]} 38. Qd6 {[%clk 0:00:17.2]} 38... Qb6 {[%clk 0:00:06.1]}
39. Nxe4 {[%clk 0:00:13.5]} 39... dxe4 {[%clk 0:00:05.9]} 40. Rxe4 {[%clk
0:00:13.9]} 40... h5 {[%clk 0:00:05.8]} 41. Re7 {[%clk 0:00:13]} 41... Qa6
{[%clk 0:00:04.8]} 42. Rxf7+ {[%clk 0:00:10.7]} 42... Kxf7 {[%clk 0:00:04.9]}
43. Qxb4 {[%clk 0:00:09.6]} 43... Qe2+ {[%clk 0:00:03.6]} 44. Ka3 {[%clk
0:00:10.2]} 44... Qxh2 {[%clk 0:00:01.1]} 45. Qc4+ {[%clk 0:00:10.8]} 45... Kg7
{[%clk 0:00:01.1]} 46. a5 {[%clk 0:00:11.4]} 1-0

[Event "*** Titled Tuesday Blitz"]
[Site "Chess.com"]
[Date "2020.05.12"]
[Round "1"]
[White "floplover"]
[Black "Azatic"]
[Result "0-1"]
[WhiteElo "2247"]
[BlackElo "2578"]
[TimeControl "180+1"]
[EndTime "10:07:49 PDT"]
[Termination "Azatic won by checkmate"]

1. d4 {[%clk 0:03:00.9]} 1... Nf6 {[%clk 0:02:47.9]} 2. c4 {[%clk 0:02:59.8]}
2... g6 {[%clk 0:02:48]} 3. Nc3 {[%clk 0:02:58.9]} 3... Bg7 {[%clk 0:02:48.3]}
4. e4 {[%clk 0:02:58.4]} 4... O-O {[%clk 0:02:49.2]} 5. Nf3 {[%clk 0:02:58.5]}
5... d6 {[%clk 0:02:48.7]} 6. Be2 {[%clk 0:02:58.8]} 6... e5 {[%clk 0:02:48.5]}
7. O-O {[%clk 0:02:58.6]} 7... Na6 {[%clk 0:02:46.2]} 8. Re1 {[%clk 0:02:55.3]}
8... c6 {[%clk 0:02:45.5]} 9. Be3 {[%clk 0:02:33.7]} 9... Qe7 {[%clk 0:02:45]}
10. dxe5 {[%clk 0:02:23.1]} 10... dxe5 {[%clk 0:02:43.5]} 11. Nd2 {[%clk
0:02:17.7]} 11... Be6 {[%clk 0:02:19.9]} 12. a3 {[%clk 0:02:08.1]} 12... h5
{[%clk 0:02:01.9]} 13. b4 {[%clk 0:01:52.6]} 13... Ng4 {[%clk 0:01:58.4]} 14.
Bxg4 {[%clk 0:01:52.4]} 14... hxg4 {[%clk 0:01:55]} 15. c5 {[%clk 0:01:44.9]}
15... Rad8 {[%clk 0:01:45.7]} 16. Qe2 {[%clk 0:01:37.8]} 16... Bf6 {[%clk
0:01:35.2]} 17. Nc4 {[%clk 0:01:24.3]} 17... Kg7 {[%clk 0:01:34.8]} 18. Nd6
{[%clk 0:01:19.7]} 18... Rh8 {[%clk 0:01:32.2]} 19. f3 {[%clk 0:01:08.5]} 19...
Bh4 {[%clk 0:00:56.3]} 20. Rf1 {[%clk 0:00:54.3]} 20... g3 {[%clk 0:00:49.5]}
21. h3 {[%clk 0:00:53.4]} 21... Bg5 {[%clk 0:00:45.8]} 22. f4 {[%clk 0:00:52]}
22... exf4 {[%clk 0:00:45.1]} 23. Bxf4 {[%clk 0:00:52.7]} 23... Rh4 {[%clk
0:00:18.6]} 24. Bxg3 {[%clk 0:00:48.6]} 24... Rh5 {[%clk 0:00:17.8]} 25. Be5+
{[%clk 0:00:40.3]} 25... f6 {[%clk 0:00:17.3]} 26. Bf4 {[%clk 0:00:39.8]} 26...
Rdh8 {[%clk 0:00:16.9]} 27. Rae1 {[%clk 0:00:32.9]} 27... Bxh3 {[%clk
0:00:10.9]} 28. gxh3 {[%clk 0:00:32.1]} 28... Rxh3 {[%clk 0:00:11.8]} 29. Qg2
{[%clk 0:00:27.4]} 29... Bxf4 {[%clk 0:00:10]} 30. Rxf4 {[%clk 0:00:26.9]} 30...
Rh1+ {[%clk 0:00:09.8]} 31. Kf2 {[%clk 0:00:24.3]} 31... Qe5 {[%clk 0:00:09.4]}
32. Rxh1 {[%clk 0:00:12.2]} 32... Qxf4+ {[%clk 0:00:09.2]} 33. Ke2 {[%clk
0:00:12.3]} 33... Rxh1 {[%clk 0:00:07.5]} 34. Qxh1 {[%clk 0:00:13.2]} 34... Qg4+
{[%clk 0:00:07.8]} 35. Qf3 {[%clk 0:00:13.2]} 35... Qh4 {[%clk 0:00:07.5]} 36.
Nd1 {[%clk 0:00:12.2]} 36... Nc7 {[%clk 0:00:06.4]} 37. Ne3 {[%clk 0:00:12.2]}
37... Ne6 {[%clk 0:00:06.8]} 38. Qg4 {[%clk 0:00:12]} 38... Qh2+ {[%clk
0:00:05.1]} 39. Kd3 {[%clk 0:00:11.2]} 39... Qe5 {[%clk 0:00:06]} 40. Nef5+
{[%clk 0:00:10.4]} 40... Kf8 {[%clk 0:00:03.6]} 41. Qxg6 {[%clk 0:00:10.1]}
41... Qd4+ {[%clk 0:00:04.1]} 42. Ke2 {[%clk 0:00:09.6]} 42... Qb2+ {[%clk
0:00:04.5]} 43. Kf3 {[%clk 0:00:09.1]} 43... Ng5+ {[%clk 0:00:04.9]} 44. Kg3
{[%clk 0:00:07.4]} 44... Qc3+ {[%clk 0:00:05.2]} 45. Kf4 {[%clk 0:00:06.5]}
45... Qf3# {[%clk 0:00:05]} 0-1